fUSD/lending_fUSD_20240331
["ID","MTS","AMOUNT","RATE_DAILY","PERIOD"]
[321100374,1711894283785,-6781.1,0.00058904,120]
[321100375,1711894283795,-500.0,0.00058904,120]
[321100376,1711894283804,-237.8,0.00058904,120]
[321100377,1711894283813,-325.77,0.00058904,120]
[321100378,1711894283823,-543.94,0.00058904,2]
[321100379,1711894283833,-500.0,0.00058904,120]
[321100380,1711894283842,-1467.87,0.00058904,120]
[321100381,1711894283852,-1113.81,0.00058904,120]
[321100382,1711894283861,-500.0,0.00058904,120]
[321100383,1711894283870,-11137.41,0.00058904,120]
[321100384,1711894283879,-914.36,0.00058904,120]
[321100385,1711894283888,-786.86,0.00058904,120]
[321100386,1711894283897,-938.23,0.00058904,120]
[321100387,1711894283907,-1333.54,0.00058904,120]
[321100388,1711894283916,-1958.97,0.00058904,21]
[321100389,1711894283925,-1044.86,0.00058904,120]
[321100390,1711894283934,-500.86,0.00058904,120]
[321100391,1711894283943,-5640.51,0.00058904,120]
[321100392,1711894283952,-1892.16,0.00058904,120]
[321100393,1711894283962,-544.62,0.00058904,120]
[321100394,1711894283972,-517.98,0.00058904,120]
[321100395,1711894283982,-500.0,0.00058904,120]
[321100396,1711894283991,-642.68,0.00058904,120]
[321100397,1711894284001,-500.0,0.00058904,120]
[321100398,1711894284010,-506.29,0.00058904,120]
[321100399,1711894284020,-2259.45,0.00058904,120]
[321100400,1711894284029,-908.46,0.00058904,120]
[321100401,1711894284038,-500.0,0.00058904,120]
[321100402,1711894284048,-639.27,0.00058904,120]
[321100403,1711894284057,-1092.83,0.00058904,120]
[321100404,1711894284067,-500.0,0.00058904,120]
[321100405,1711894284076,-2487.04,0.00058904,120]
[321100406,1711894284086,-1781.98,0.00058904,120]
[321100407,1711894284095,-500.0,0.00058904,120]
[321100408,1711894284105,-1175.87,0.00058904,120]
[321100409,1711894284115,-1336.92,0.00058904,120]
[321100410,1711894284124,-3011.12,0.00058904,120]
[321100411,1711894284134,-500.0,0.00058904,120]
[321100412,1711894284143,-1528.21,0.00058904,120]
[321100413,1711894284153,-544.34,0.00058904,120]
[321100414,1711894284163,-500.0,0.00058904,120]
[321100415,1711894284172,-500.0,0.00058904,120]
[321100416,1711894284182,-1338.37,0.00058904,120]
[321100417,1711894284191,-500.0,0.00058904,120]
[321100418,1711894284200,-519.06,0.00058904,120]
[321100419,1711894284209,-1622.59,0.00058904,120]
[321100420,1711894284220,-500.0,0.00058904,120]
[321100421,1711894284229,-605.37,0.00058904,120]
[321100422,1711894284238,-2011.39,0.00058904,120]
[321100423,1711894284247,-1383.81,0.00058904,120]
[321100424,1711894284256,-2546.45,0.00058904,120]
[321100425,1711894284266,-1692.34,0.00058904,120]
[321100426,1711894284275,-2361.13,0.00058904,120]
[321100427,1711894284284,-500.0,0.00058904,120]
[321100428,1711894284293,-5275.16,0.00058904,120]
[321100429,1711894284302,-1851.82,0.00058904,120]
[321100430,1711894284311,-5572.11,0.00058904,120]
[321100431,1711894284320,-568.01,0.00058904,120]
[321100432,1711894284329,-533.01,0.00058904,120]
[321100433,1711894284339,-2843.98,0.00058904,120]
[321100434,1711894284348,-500.0,0.00058904,120]
[321100435,1711894284357,-473.07881246,0.00058904,120]
[321100436,1711894284366,-526.73,0.00058904,120]
[321100437,1711894284375,-3300.5,0.00058904,120]
[321100438,1711894284384,-1608.2,0.00058904,120]
[321100439,1711894284393,-551.36,0.00058904,120]
[321100440,1711894284402,-500.0,0.00058904,120]
[321100441,1711894284411,-1509.08,0.00058904,120]
[321100442,1711894284421,-1066.72,0.00058904,120]
[321100443,1711894284430,-1382.58,0.00058904,120]
[321100444,1711894284439,-500.0,0.00058904,120]
[321100445,1711894284449,-1791.54,0.00058904,120]
[321100446,1711894284458,-500.0,0.00058904,120]
[321100447,1711894284468,-500.23,0.00058904,120]
[321100448,1711894284477,-828.12,0.00058904,120]
[321100449,1711894284487,-534.14,0.00058904,120]
[321100450,1711894284496,-513.82,0.00058904,120]
[321100451,1711894284505,-500.0,0.00058904,120]
[321100452,1711894284515,-7754.49,0.00058904,120]
[321100453,1711894284524,-2108.77,0.00058904,120]
[321100454,1711894284534,-2518.23,0.00058904,120]
[321100455,1711894284543,-2060.41,0.00058904,120]
[321100456,1711894284552,-500.0,0.00058904,120]
[321100457,1711894284561,-500.0,0.00058904,120]
[321100458,1711894284571,-507.06,0.00058904,120]
[321100459,1711894284581,-501.29,0.00058904,120]
[321100460,1711894284595,-500.0,0.00058904,120]
[321100461,1711894284604,-9968.34,0.00058904,120]
[321100462,1711894284614,-3471.43,0.00058904,120]
[321100463,1711894284624,-500.0,0.00058904,120]
[321100464,1711894284633,-999.94,0.0005895,2]
[321100465,1711894284643,-360.38804354,0.00059,120]
[321100466,1711894284654,-253.69,0.00059,14]
[321100467,1711894284665,-151.0,0.00059096,120]
[321100468,1711894284674,-47883.89,0.00059152,6]
[321100469,1711894284684,-664.08,0.00059178,120]
[321100470,1711894284693,-2110.47,0.00059178,120]
[321100471,1711894284702,-9971.6,0.00059178,120]
[321100472,1711894284712,-500.0,0.00059178,120]
[321100473,1711894284721,-6781.1,0.00059178,120]
[321100474,1711894284730,-500.0,0.00059178,120]
[321100475,1711894284740,-165.89610637,0.00059178,120]
[321100476,1711894284749,-1467.87,0.00059178,120]
[321100477,1711894284759,-1113.81,0.00059178,120]
[321100478,1711894284769,-500.0,0.00059178,120]
[321100479,1711894284779,-11137.41,0.00059178,120]
[321100480,1711894284789,-914.36,0.00059178,120]
[321100481,1711894284798,-786.86,0.00059178,120]
[321100482,1711894284808,-938.23,0.00059178,120]
[321100483,1711894284818,-1333.54,0.00059178,120]
[321100484,1711894284827,-1958.97,0.00059178,21]
[321100485,1711894284836,-1044.86,0.00059178,120]
[321100486,1711894284846,-500.86,0.00059178,120]
[321100487,1711894284855,-5640.51,0.00059178,120]
[321100488,1711894284864,-1892.16,0.00059178,120]
[321100489,1711894284874,-517.98,0.00059178,120]
[321100490,1711894284884,-500.0,0.00059178,120]
[321100491,1711894284892,-642.68,0.00059178,120]
[321100492,1711894284901,-500.0,0.00059178,120]
[321100493,1711894284911,-506.29,0.00059178,120]
[321100494,1711894284920,-2259.45,0.00059178,120]
[321100495,1711894284929,-908.46,0.00059178,120]
[321100496,1711894284938,-500.0,0.00059178,120]
[321100497,1711894284947,-639.27,0.00059178,120]
[321100498,1711894284956,-1092.83,0.00059178,120]
[321100499,1711894284966,-500.0,0.00059178,120]
[321100500,1711894284976,-2487.04,0.00059178,120]
[321100501,1711894284985,-1781.98,0.00059178,120]
[321100502,1711894284995,-500.0,0.00059178,120]
[321100503,1711894285005,-1175.87,0.00059178,120]
[321100504,1711894285014,-1336.92,0.00059178,120]
[321100505,1711894285024,-3011.12,0.00059178,120]
[321100506,1711894285034,-337.62375955,0.00059178,120]
[321100507,1711894285043,-1528.21,0.00059178,120]
[321100508,1711894285052,-544.34,0.00059178,120]
[321100509,1711894285061,-500.0,0.00059178,120]
[321100510,1711894285071,-500.0,0.00059178,120]
[321100511,1711894285080,-1338.37,0.00059178,120]
[321100512,1711894285089,-500.0,0.00059178,120]
[321100513,1711894285098,-519.06,0.00059178,120]
[321100514,1711894285107,-1622.59,0.00059178,120]
[321100515,1711894285117,-500.0,0.00059178,120]
[321100516,1711894285126,-605.37,0.00059178,120]
[321100517,1711894285135,-2011.39,0.00059178,120]
[321100518,1711894285146,-1383.81,0.00059178,120]
[321100519,1711894285155,-2546.45,0.00059178,120]
[321100520,1711894285164,-1692.34,0.00059178,120]
[321100521,1711894285173,-2361.13,0.00059178,120]
[321100522,1711894285182,-500.0,0.00059178,120]
[321100523,1711894285191,-5275.16,0.00059178,120]
[321100524,1711894285200,-1851.82,0.00059178,120]
[321100525,1711894285209,-5572.11,0.00059178,120]
[321100526,1711894285218,-568.01,0.00059178,120]
[321100527,1711894285227,-533.01,0.00059178,120]
[321100528,1711894285237,-2843.98,0.00059178,120]
[321100529,1711894285245,-500.0,0.00059178,120]
[321100530,1711894285254,-526.73,0.00059178,120]
[321100531,1711894285263,-3300.5,0.00059178,120]
[321100532,1711894285272,-1608.2,0.00059178,120]
[321100533,1711894285281,-551.36,0.00059178,120]
[321100534,1711894285290,-500.0,0.00059178,120]
[321100535,1711894285299,-1509.08,0.00059178,120]
[321100536,1711894285309,-1066.72,0.00059178,120]
[321100537,1711894285318,-1382.58,0.00059178,120]
[321100538,1711894285328,-500.0,0.00059178,120]
[321100539,1711894285337,-1791.54,0.00059178,120]
[321100540,1711894285346,-500.0,0.00059178,120]
[321100541,1711894285355,-500.23,0.00059178,120]
[321100542,1711894285364,-828.12,0.00059178,120]
[321100543,1711894285373,-534.14,0.00059178,120]
[321100544,1711894285383,-513.82,0.00059178,120]
[321100545,1711894285392,-154.08,0.00059178,120]
[321100546,1711894285402,-7754.49,0.00059178,120]
[321100547,1711894285411,-2108.77,0.00059178,120]
[321100548,1711894285420,-2518.23,0.00059178,120]
[321100549,1711894285429,-2060.41,0.00059178,120]
[321100550,1711894285438,-500.0,0.00059178,120]
[321100551,1711894285448,-500.0,0.00059178,120]
[321100552,1711894285457,-507.06,0.00059178,120]
[321100553,1711894285467,-501.29,0.00059178,120]
[321100554,1711894285476,-500.0,0.00059178,120]
[321100555,1711894285485,-9968.34,0.00059178,120]
[321100556,1711894285494,-3471.43,0.00059178,120]
[321100557,1711894285503,-500.0,0.00059178,120]
[321100558,1711894285512,-664.08,0.00059452,120]
[321100559,1711894285521,-2110.47,0.00059452,120]
[321100560,1711894285531,-9971.6,0.00059452,120]
[321100561,1711894285540,-500.0,0.00059452,120]
[321100562,1711894285549,-6781.1,0.00059452,120]
[321100563,1711894285559,-500.0,0.00059452,120]
[321100564,1711894285568,-1467.87,0.00059452,120]
[321100565,1711894285577,-1113.81,0.00059452,120]
[321100566,1711894285589,-500.0,0.00059452,120]
[321100567,1711894285599,-11137.41,0.00059452,120]
[321100568,1711894285607,-914.36,0.00059452,120]
[321100569,1711894285616,-786.86,0.00059452,120]
[321100570,1711894285626,-938.23,0.00059452,120]
[321100571,1711894285635,-1333.54,0.00059452,120]
[321100572,1711894285644,-1958.97,0.00059452,21]
[321100573,1711894285653,-1044.86,0.00059452,120]
[321100574,1711894285663,-500.86,0.00059452,120]
[321100575,1711894285672,-5640.51,0.00059452,120]
[321100576,1711894285681,-1892.16,0.00059452,120]
[321100577,1711894285690,-517.98,0.00059452,120]
[321100578,1711894285699,-500.0,0.00059452,120]
[321100579,1711894285709,-642.68,0.00059452,120]
[321100580,1711894285718,-303.48,0.00059452,120]
[321100581,1711894285727,-506.29,0.00059452,120]
[321100582,1711894285737,-2259.45,0.00059452,120]
[321100583,1711894285746,-908.46,0.00059452,120]
[321100584,1711894285755,-500.0,0.00059452,120]
[321100585,1711894285763,-639.27,0.00059452,120]
[321100586,1711894285772,-1092.83,0.00059452,120]
[321100587,1711894285781,-500.0,0.00059452,120]
[321100588,1711894285790,-2487.04,0.00059452,120]
[321100589,1711894285799,-1781.98,0.00059452,120]
[321100590,1711894285808,-500.0,0.00059452,120]
[321100591,1711894285817,-1175.87,0.00059452,120]
[321100592,1711894285826,-1336.92,0.00059452,120]
[321100593,1711894285835,-3011.12,0.00059452,120]
[321100594,1711894285844,-1528.21,0.00059452,120]
[321100595,1711894285853,-544.34,0.00059452,120]
[321100596,1711894285863,-500.0,0.00059452,120]
[321100597,1711894285872,-562.1,0.00059452,120]
[321100598,1711894285996,-1338.37,0.00059452,120]
[321100599,1711894286006,-500.0,0.00059452,120]
[321100600,1711894286015,-519.06,0.00059452,120]
[321100601,1711894286024,-1622.59,0.00059452,120]
[321100602,1711894286033,-526.35675382,0.00059452,120]
[321100603,1711894286042,-605.37,0.00059452,120]
[321100604,1711894286051,-2011.39,0.00059452,120]
[321100605,1711894286061,-1383.81,0.00059452,120]
[321100606,1711894286070,-2546.45,0.00059452,120]
[321100607,1711894286079,-1692.34,0.00059452,120]
[321100608,1711894286088,-2361.13,0.00059452,120]
[321100609,1711894286097,-619.80582123,0.00059452,120]
[321100610,1711894286106,-5275.16,0.00059452,120]
[321100611,1711894286115,-1851.82,0.00059452,120]
[321100612,1711894286124,-5572.11,0.00059452,120]
[321100613,1711894286133,-568.01,0.00059452,120]
[321100614,1711894286142,-533.01,0.00059452,120]
[321100615,1711894286151,-2843.98,0.00059452,120]
[321100616,1711894286160,-500.0,0.00059452,120]
[321100617,1711894286169,-526.73,0.00059452,120]
[321100618,1711894286179,-3300.5,0.00059452,120]
[321100619,1711894286188,-1608.2,0.00059452,120]
[321100620,1711894286197,-551.36,0.00059452,120]
[321100621,1711894286206,-500.0,0.00059452,120]
[321100622,1711894286215,-1509.08,0.00059452,120]
[321100623,1711894286224,-1066.72,0.00059452,120]
[321100624,1711894286233,-1382.58,0.00059452,120]
[321100625,1711894286242,-500.0,0.00059452,120]
[321100626,1711894286251,-1791.54,0.00059452,120]
[321100627,1711894286260,-500.0,0.00059452,120]
[321100628,1711894286269,-500.23,0.00059452,120]
[321100629,1711894286278,-828.12,0.00059452,120]
[321100630,1711894286288,-534.14,0.00059452,120]
[321100631,1711894286298,-7754.49,0.00059452,120]
[321100632,1711894286307,-513.82,0.00059452,120]
[321100633,1711894286316,-2108.77,0.00059452,120]
[321100634,1711894286325,-2518.23,0.00059452,120]
[321100635,1711894286334,-2060.41,0.00059452,120]
[321100636,1711894286343,-500.0,0.00059452,120]
[321100637,1711894286353,-500.0,0.00059452,120]
[321100638,1711894286362,-507.06,0.00059452,120]
[321100639,1711894286371,-501.29,0.00059452,120]
[321100640,1711894286380,-9968.34,0.00059452,120]
[321100641,1711894286389,-3471.43,0.00059452,120]
[321100642,1711894286398,-500.0,0.00059452,120]
[321100643,1711894286407,-664.08,0.00059726,120]
[321100644,1711894286416,-2110.47,0.00059726,120]
[321100645,1711894286426,-9971.6,0.00059726,120]
[321100646,1711894286435,-500.0,0.00059726,120]
[321100647,1711894286444,-6781.1,0.00059726,120]
[321100648,1711894286453,-500.0,0.00059726,120]
[321100649,1711894286463,-1467.87,0.00059726,120]
[321100650,1711894286472,-1113.81,0.00059726,120]
[321100651,1711894286481,-549.48,0.00059726,120]
[321100652,1711894286490,-11137.41,0.00059726,120]
[321100653,1711894286500,-914.36,0.00059726,120]
[321100654,1711894286509,-786.86,0.00059726,120]
[321100655,1711894286518,-938.23,0.00059726,120]
[321100656,1711894286527,-1333.54,0.00059726,120]
[321100657,1711894286536,-1958.97,0.00059726,21]
[321100658,1711894286545,-1044.86,0.00059726,120]
[321100659,1711894286554,-500.86,0.00059726,120]
[321100660,1711894286564,-5640.51,0.00059726,120]
[321100661,1711894286573,-1892.16,0.00059726,120]
[321100662,1711894286584,-517.98,0.00059726,120]
[321100663,1711894286594,-500.0,0.00059726,120]
[321100664,1711894286603,-642.68,0.00059726,120]
[321100665,1711894286612,-506.29,0.00059726,120]
[321100666,1711894286622,-2259.45,0.00059726,120]
[321100667,1711894286631,-908.46,0.00059726,120]
[321100668,1711894286640,-500.0,0.00059726,120]
[321100669,1711894286650,-639.27,0.00059726,120]
[321100670,1711894286659,-1092.83,0.00059726,120]
[321100671,1711894286669,-500.0,0.00059726,120]
[321100672,1711894286678,-2487.04,0.00059726,120]
[321100673,1711894286687,-1781.98,0.00059726,120]
[321100674,1711894286696,-500.0,0.00059726,120]
[321100675,1711894286706,-1175.87,0.00059726,120]
[321100676,1711894286715,-1336.92,0.00059726,120]
[321100677,1711894286725,-3011.12,0.00059726,120]
[321100678,1711894286734,-1528.21,0.00059726,120]
[321100679,1711894286743,-544.34,0.00059726,120]
[321100680,1711894286753,-500.0,0.00059726,120]
[321100681,1711894286762,-1338.37,0.00059726,120]
[321100682,1711894286772,-500.0,0.00059726,120]
[321100683,1711894286781,-519.06,0.00059726,120]
[321100684,1711894286791,-1622.59,0.00059726,120]
[321100685,1711894286800,-605.37,0.00059726,120]
[321100686,1711894286809,-2011.39,0.00059726,120]
[321100687,1711894286819,-1383.81,0.00059726,120]
[321100688,1711894286829,-2546.45,0.00059726,120]
[321100689,1711894286839,-1692.34,0.00059726,120]
[321100690,1711894286849,-2361.13,0.00059726,120]
[321100691,1711894286858,-5275.16,0.00059726,120]
[321100692,1711894286867,-1851.82,0.00059726,120]
[321100693,1711894286876,-5572.11,0.00059726,120]
[321100694,1711894286885,-568.01,0.00059726,120]
[321100695,1711894286894,-533.01,0.00059726,120]
[321100696,1711894286904,-2843.98,0.00059726,120]
[321100697,1711894286913,-500.0,0.00059726,120]
[321100698,1711894286922,-526.73,0.00059726,120]
[321100699,1711894286932,-3300.5,0.00059726,120]
[321100700,1711894286941,-1608.2,0.00059726,120]
[321100701,1711894286950,-551.36,0.00059726,120]
[321100702,1711894286960,-500.0,0.00059726,120]
[321100703,1711894286969,-1509.08,0.00059726,120]
[321100704,1711894286978,-1066.72,0.00059726,120]
[321100705,1711894286987,-1382.58,0.00059726,120]
[321100706,1711894286996,-500.0,0.00059726,120]
[321100707,1711894287006,-1791.54,0.00059726,120]
[321100708,1711894287015,-500.0,0.00059726,120]
[321100709,1711894287024,-500.23,0.00059726,120]
[321100710,1711894287033,-828.12,0.00059726,120]
[321100711,1711894287042,-534.14,0.00059726,120]
[321100712,1711894287051,-7754.49,0.00059726,120]
[321100713,1711894287061,-513.82,0.00059726,120]
[321100714,1711894287070,-2108.77,0.00059726,120]
[321100715,1711894287079,-2518.23,0.00059726,120]
[321100716,1711894287088,-2060.41,0.00059726,120]
[321100717,1711894287097,-500.0,0.00059726,120]
[321100718,1711894287107,-500.0,0.00059726,120]
[321100719,1711894287116,-507.06,0.00059726,120]
[321100720,1711894287125,-501.29,0.00059726,120]
[321100721,1711894287135,-9968.34,0.00059726,120]
[321100722,1711894287143,-3471.43,0.00059726,120]
[321100723,1711894287153,-500.0,0.00059726,120]
[321100724,1711894287162,-151.0,0.00059836,120]
[321100725,1711894287171,-151.0,0.00059973,120]
[321100726,1711894287180,-44131.51,0.00059973,6]
[321100727,1711894287189,-664.08,0.00059999,120]
[321100728,1711894287198,-2110.47,0.00059999,120]
[321100729,1711894287207,-9971.6,0.00059999,120]
[321100730,1711894287218,-500.0,0.00059999,120]
[321100731,1711894287227,-6781.1,0.00059999,120]
[321100732,1711894287236,-500.0,0.00059999,120]
[321100733,1711894287245,-1467.87,0.00059999,120]
[321100734,1711894287254,-1113.81,0.00059999,120]
[321100735,1711894287263,-11137.41,0.00059999,120]
[321100736,1711894287272,-914.36,0.00059999,120]
[321100737,1711894287281,-786.86,0.00059999,120]
[321100738,1711894287290,-938.23,0.00059999,120]
[321100739,1711894287299,-1333.54,0.00059999,120]
[321100740,1711894287308,-1958.97,0.00059999,21]
[321100741,1711894287317,-1044.86,0.00059999,120]
[321100742,1711894287326,-500.86,0.00059999,120]
[321100743,1711894287336,-5640.51,0.00059999,120]
[321100744,1711894287345,-1892.16,0.00059999,120]
[321100745,1711894287354,-517.98,0.00059999,120]
[321100746,1711894287363,-217.57,0.00059999,120]
[321100747,1711894287372,-642.68,0.00059999,120]
[321100748,1711894287381,-506.29,0.00059999,120]
[321100749,1711894287390,-2259.45,0.00059999,120]
[321100750,1711894287399,-908.46,0.00059999,120]
[321100751,1711894287408,-500.0,0.00059999,120]
[321100752,1711894287417,-639.27,0.00059999,120]
[321100753,1711894287426,-1092.83,0.00059999,120]
[321100754,1711894287435,-500.0,0.00059999,120]
[321100755,1711894287444,-2487.04,0.00059999,120]
[321100756,1711894287454,-1781.98,0.00059999,120]
[321100757,1711894287463,-500.0,0.00059999,120]
[321100758,1711894287472,-1175.87,0.00059999,120]
[321100759,1711894287482,-1336.92,0.00059999,120]
[321100760,1711894287491,-3011.12,0.00059999,120]
[321100761,1711894287500,-1528.21,0.00059999,120]
[321100762,1711894287509,-544.34,0.00059999,120]
[321100763,1711894287518,-500.0,0.00059999,120]
[321100764,1711894287527,-1338.37,0.00059999,120]
[321100765,1711894287537,-500.0,0.00059999,120]
[321100766,1711894287546,-519.06,0.00059999,120]
[321100767,1711894287556,-1622.59,0.00059999,120]
[321100768,1711894287565,-605.37,0.00059999,120]
[321100769,1711894287574,-2011.39,0.00059999,120]
[321100770,1711894287586,-1383.81,0.00059999,120]
[321100771,1711894287596,-2546.45,0.00059999,120]
[321100772,1711894287606,-1692.34,0.00059999,120]
[321100773,1711894287615,-2361.13,0.00059999,120]
[321100774,1711894287625,-5275.16,0.00059999,120]
[321100775,1711894287634,-1851.82,0.00059999,120]
[321100776,1711894287643,-5572.11,0.00059999,120]
[321100777,1711894287652,-568.01,0.00059999,120]
[321100778,1711894287662,-533.01,0.00059999,120]
[321100779,1711894287672,-2843.98,0.00059999,120]
[321100780,1711894287681,-500.0,0.00059999,120]
[321100781,1711894287690,-526.73,0.00059999,120]
[321100782,1711894287699,-3300.5,0.00059999,120]
[321100783,1711894287709,-1608.2,0.00059999,120]
[321100784,1711894287718,-551.36,0.00059999,120]
[321100785,1711894287728,-1509.08,0.00059999,120]
[321100786,1711894287737,-1066.72,0.00059999,120]
[321100787,1711894287747,-1382.58,0.00059999,120]
[321100788,1711894287756,-500.0,0.00059999,120]
[321100789,1711894287765,-1791.54,0.00059999,120]
[321100790,1711894287774,-504.96600906,0.00059999,120]
[321100791,1711894287783,-500.23,0.00059999,120]
[321100792,1711894287792,-828.12,0.00059999,120]
[321100793,1711894287802,-534.14,0.00059999,120]
[321100794,1711894287811,-7754.49,0.00059999,120]
[321100795,1711894287820,-513.82,0.00059999,120]
[321100796,1711894287830,-2108.77,0.00059999,120]
[321100797,1711894287839,-2518.23,0.00059999,120]
[321100798,1711894287849,-2060.41,0.00059999,120]
[321100799,1711894287858,-500.0,0.00059999,120]
[321100800,1711894287867,-500.0,0.00059999,120]
[321100801,1711894287877,-507.06,0.00059999,120]
[321100802,1711894287886,-501.29,0.00059999,120]
[321100803,1711894287895,-9968.34,0.00059999,120]
[321100804,1711894287905,-3471.43,0.00059999,120]
[321100805,1711894287914,-500.0,0.00059999,120]
[321100806,1711894287924,-156.26302867,0.0006,60]
[321100807,1711894287933,-9894.08355956,0.0006,120]
[321100808,1711894287942,-1495.10162571,0.0006,7]
[321100809,1711894287952,-518.00010414,0.0006,90]
[321100810,1711894287961,-200.0,0.0006,120]
[321100811,1711894287971,-10000.0,0.0006,4]
[321100812,1711894287980,-156.45889321,0.0006,120]
[321100813,1711894287990,-664.08,0.00060273,120]
[321100814,1711894287999,-2110.47,0.00060273,120]
[321100815,1711894288009,-9971.6,0.00060273,120]
[321100816,1711894288018,-500.0,0.00060273,120]
[321100817,1711894288027,-6781.1,0.00060273,120]
[321100818,1711894288037,-500.0,0.00060273,120]
[321100819,1711894288047,-1467.87,0.00060273,120]
[321100820,1711894288056,-1113.81,0.00060273,120]
[321100821,1711894288066,-11137.41,0.00060273,120]
[321100822,1711894288075,-914.36,0.00060273,120]
[321100823,1711894288084,-786.86,0.00060273,120]
[321100824,1711894288093,-938.23,0.00060273,120]
[321100825,1711894288102,-1333.54,0.00060273,120]
[321100826,1711894288112,-1958.97,0.00060273,21]
[321100827,1711894288122,-1044.86,0.00060273,120]
[321100828,1711894288131,-500.86,0.00060273,120]
[321100829,1711894288140,-5640.51,0.00060273,120]
[321100830,1711894288149,-1892.16,0.00060273,120]
[321100831,1711894288158,-517.98,0.00060273,120]
[321100832,1711894288167,-642.68,0.00060273,120]
[321100833,1711894288176,-506.29,0.00060273,120]
[321100834,1711894288185,-2259.45,0.00060273,120]
[321100835,1711894288194,-908.46,0.00060273,120]
[321100836,1711894288203,-445.03745863,0.00060273,120]
[321100837,1711894288212,-639.27,0.00060273,120]
[321100838,1711894288221,-1092.83,0.00060273,120]
[321100839,1711894288231,-500.0,0.00060273,120]
[321100840,1711894288240,-2487.04,0.00060273,120]
[321100841,1711894288249,-1781.98,0.00060273,120]
[321100842,1711894288258,-253.04704018,0.00060273,120]
[321100843,1711894288267,-1175.87,0.00060273,120]
[321100844,1711894288276,-1336.92,0.00060273,120]
[321100845,1711894288286,-3011.12,0.00060273,120]
[321100846,1711894288294,-1528.21,0.00060273,120]
[321100847,1711894288303,-544.34,0.00060273,120]
[321100848,1711894288313,-500.0,0.00060273,120]
[321100849,1711894288322,-1338.37,0.00060273,120]
[321100850,1711894288332,-500.0,0.00060273,120]
[321100851,1711894288341,-519.06,0.00060273,120]
[321100852,1711894288350,-1622.59,0.00060273,120]
[321100853,1711894288359,-605.37,0.00060273,120]
[321100854,1711894288368,-2011.39,0.00060273,120]
[321100855,1711894288377,-1383.81,0.00060273,120]
[321100856,1711894288386,-2546.45,0.00060273,120]
[321100857,1711894288396,-1692.34,0.00060273,120]
[321100858,1711894288405,-2361.13,0.00060273,120]
[321100859,1711894288414,-5275.16,0.00060273,120]
[321100860,1711894288423,-1851.82,0.00060273,120]
[321100861,1711894288432,-5572.11,0.00060273,120]
[321100862,1711894288441,-568.01,0.00060273,120]
[321100863,1711894288450,-533.01,0.00060273,120]
[321100864,1711894288459,-2843.98,0.00060273,120]
[321100865,1711894288469,-500.0,0.00060273,120]
[321100866,1711894288478,-526.73,0.00060273,120]
[321100867,1711894288487,-3300.5,0.00060273,120]
[321100868,1711894288496,-1608.2,0.00060273,120]
[321100869,1711894288506,-551.36,0.00060273,120]
[321100870,1711894288515,-1509.08,0.00060273,120]
[321100871,1711894288525,-1066.72,0.00060273,120]
[321100872,1711894288534,-1382.58,0.00060273,120]
[321100873,1711894288543,-500.0,0.00060273,120]